[Event "Late Titled Tuesday Blitz February 8 2022"]
[White "Indjic, Aleksandar"]
[Black "Martirosyan, Haik M."]
[WhiteFideId "911925"]
[BlackFideId "13306553"]
[WhiteElo "2616"]
[BlackElo "2735"]
[Result "1-0"]
[Round "09"]
[TimeControl "180+1"]
[Date "2022.02.08"]
[WhiteClock "0:00:01"]
[BlackClock "0:00:01"]

1. d4 {[%clk 0:03:00]}  Nf6 {[%clk 0:02:58]} 2. Nf3 {[%clk 0:03:01]}  d5 {[%clk 0:02:56]} 3. Bf4 {[%clk 0:03:00]}  c5 {[%clk 0:02:56]} 4. e3 {[%clk 0:03:00]}  cxd4 {[%clk 0:02:55]} 5. exd4 {[%clk 0:02:59]}  Nc6 {[%clk 0:02:56]} 6. Nbd2 {[%clk 0:02:58]}  Bf5 {[%clk 0:02:55]} 7. c3 {[%clk 0:02:57]}  e6 {[%clk 0:02:55]} 8. Be2 {[%clk 0:02:55]}  Bd6 {[%clk 0:02:54]} 9. Bg3 {[%clk 0:02:55]}  O-O {[%clk 0:02:53]} 10. O-O {[%clk 0:02:55]}  Bxg3 {[%clk 0:02:52]} 11. hxg3 {[%clk 0:02:54]}  h6 {[%clk 0:02:53]} 12. Re1 {[%clk 0:02:53]}  Rb8 {[%clk 0:02:45]} 13. a4 {[%clk 0:02:54]}  Ne7 {[%clk 0:02:41]} 14. Qb3 {[%clk 0:02:52]}  Nc8 {[%clk 0:02:41]} 15. Nf1 {[%clk 0:02:51]}  Nd6 {[%clk 0:02:40]} 16. Ne3 {[%clk 0:02:51]}  Bh7 {[%clk 0:02:37]} 17. Nd2 {[%clk 0:02:49]}  Qd7 {[%clk 0:02:21]} 18. a5 {[%clk 0:02:48]}  Rfc8 {[%clk 0:02:21]} 19. Qb4 {[%clk 0:02:47]}  Qc7 {[%clk 0:02:17]} 20. Bf1 {[%clk 0:02:42]}  Qd8 {[%clk 0:01:44]} 21. Qb3 {[%clk 0:02:39]}  Rc6 {[%clk 0:01:41]} 22. Nc2 {[%clk 0:02:34]}  b5 {[%clk 0:01:31]} 23. Nb4 {[%clk 0:02:32]}  Rcc8 {[%clk 0:01:31]} 24. Na6 {[%clk 0:02:23]}  Nc4 {[%clk 0:01:16]} 25. Nf3 {[%clk 0:02:23]}  Rb7 {[%clk 0:01:10]} 26. Nc5 {[%clk 0:02:21]}  Rbb8 {[%clk 0:01:09]} 27. Qb4 {[%clk 0:02:21]}  Ne4 {[%clk 0:01:03]} 28. Nd3 {[%clk 0:01:47]}  a6 {[%clk 0:00:55]} 29. Rec1 {[%clk 0:01:43]}  Ncd6 {[%clk 0:00:52]} 30. Qa3 {[%clk 0:01:40]}  Nc4 {[%clk 0:00:51]} 31. Qa2 {[%clk 0:01:37]}  Bf5 {[%clk 0:00:48]} 32. Nb4 {[%clk 0:01:37]}  Ra8 {[%clk 0:00:46]} 33. Re1 {[%clk 0:01:36]}  g5 {[%clk 0:00:41]} 34. Bd3 {[%clk 0:01:33]}  Kg7 {[%clk 0:00:38]} 35. Nh2 {[%clk 0:01:16]}  h5 {[%clk 0:00:34]} 36. Bxe4 {[%clk 0:01:08]}  Bxe4 {[%clk 0:00:34]} 37. b3 {[%clk 0:01:08]}  Nd6 {[%clk 0:00:32]} 38. Qd2 {[%clk 0:01:06]}  Bf5 {[%clk 0:00:31]} 39. f3 {[%clk 0:01:05]}  Qf6 {[%clk 0:00:29]} 40. Nf1 {[%clk 0:01:04]}  Bg6 {[%clk 0:00:24]} 41. Rac1 {[%clk 0:00:57]}  Rh8 {[%clk 0:00:23]} 42. Nc6 {[%clk 0:00:52]}  h4 {[%clk 0:00:21]} 43. g4 {[%clk 0:00:51]}  h3 {[%clk 0:00:21]} 44. Ne5 {[%clk 0:00:50]}  hxg2 {[%clk 0:00:20]} 45. Kxg2 {[%clk 0:00:47]}  Rh6 {[%clk 0:00:20]} 46. Ng3 {[%clk 0:00:46]}  Rah8 {[%clk 0:00:20]} 47. Rh1 {[%clk 0:00:47]}  Rxh1 {[%clk 0:00:16]} 48. Rxh1 {[%clk 0:00:48]}  Rxh1 {[%clk 0:00:16]} 49. Nxh1 {[%clk 0:00:47]}  Nb7 {[%clk 0:00:16]} 50. b4 {[%clk 0:00:39]}  Nd6 {[%clk 0:00:15]} 51. Nf2 {[%clk 0:00:40]}  Qe7 {[%clk 0:00:11]} 52. Qe2 {[%clk 0:00:18]}  Bh7 {[%clk 0:00:11]} 53. Ned3 {[%clk 0:00:17]}  Nc4 {[%clk 0:00:10]} 54. Nc5 {[%clk 0:00:17]}  Qd6 {[%clk 0:00:11]} 55. Nfd3 {[%clk 0:00:13]}  Bg8 {[%clk 0:00:06]} 56. Ne5 {[%clk 0:00:12]}  f6 {[%clk 0:00:03]} 57. Nxc4 {[%clk 0:00:12]}  bxc4 {[%clk 0:00:03]} 58. Qe1 {[%clk 0:00:11]}  e5 {[%clk 0:00:03]} 59. Qg3 {[%clk 0:00:11]}  Qe7 {[%clk 0:00:01]} 60. Qf2 {[%clk 0:00:11]}  exd4 {[%clk 0:00:01]} 61. Qxd4 {[%clk 0:00:11]}  Qe2+ {[%clk 0:00:02]} 62. Qf2 {[%clk 0:00:12]}  Qd1 {[%clk 0:00:01]} 63. Nxa6 {[%clk 0:00:11]}  d4 {[%clk 0:00:02]} 64. Qxd4 {[%clk 0:00:10]}  Qxd4 {[%clk 0:00:01]} 65. cxd4 {[%clk 0:00:11]}  c3 {[%clk 0:00:02]} 66. Nc5 {[%clk 0:00:10]}  Bc4 {[%clk 0:00:03]} 67. a6 {[%clk 0:00:09]}  c2 {[%clk 0:00:03]} 68. a7 {[%clk 0:00:10]}  c1=Q {[%clk 0:00:03]} 69. a8=Q {[%clk 0:00:10]}  Qf1+ {[%clk 0:00:02]} 70. Kh2 {[%clk 0:00:09]}  Qf2+ {[%clk 0:00:02]} 71. Kh1 {[%clk 0:00:10]}  Qf1+ {[%clk 0:00:02]} 72. Kh2 {[%clk 0:00:10]}  Qf2+ {[%clk 0:00:01]} 73. Kh1 {[%clk 0:00:10]}  Bf1 {[%clk 0:00:01]} 74. Qa7+ {[%clk 0:00:01]} 1-0


[Site "https://www.chess.com"]

[Event "Late Titled Tuesday Blitz February 8 2022"]
[White "Jaskolka, Tomasz"]
[Black "Noboa Silva, Kevin"]
[WhiteFideId "1170791"]
[BlackFideId "3618471"]
[WhiteElo "2054"]
[BlackElo "2161"]
[Result "0-1"]
[Round "09"]
[TimeControl "180+1"]
[Date "2022.02.09"]
[WhiteClock "0:00:04"]
[BlackClock "0:00:59"]

1. e4 {[%clk 0:03:00]}  c5 {[%clk 0:02:56]} 2. Nf3 {[%clk 0:03:00]}  e6 {[%clk 0:02:55]} 3. d4 {[%clk 0:02:57]}  cxd4 {[%clk 0:02:55]} 4. Nxd4 {[%clk 0:02:58]}  Nc6 {[%clk 0:02:55]} 5. g3 {[%clk 0:02:44]}  Qc7 {[%clk 0:02:42]} 6. Nc3 {[%clk 0:02:44]}  a6 {[%clk 0:02:42]} 7. Bg2 {[%clk 0:02:42]}  Nf6 {[%clk 0:02:36]} 8. O-O {[%clk 0:02:42]}  d6 {[%clk 0:02:36]} 9. Be3 {[%clk 0:02:30]}  Bd7 {[%clk 0:02:30]} 10. h3 {[%clk 0:02:24]}  Be7 {[%clk 0:02:29]} 11. Qd2 {[%clk 0:02:23]}  O-O {[%clk 0:02:26]} 12. Rad1 {[%clk 0:02:23]}  Rac8 {[%clk 0:02:26]} 13. Qe2 {[%clk 0:01:55]}  b5 {[%clk 0:02:17]} 14. a3 {[%clk 0:01:52]}  Rfe8 {[%clk 0:02:16]} 15. f4 {[%clk 0:01:49]}  Na5 {[%clk 0:02:07]} 16. Kh2 {[%clk 0:01:46]}  Nc4 {[%clk 0:02:06]} 17. Bc1 {[%clk 0:01:46]}  Nxa3 {[%clk 0:02:04]} 18. e5 {[%clk 0:01:36]}  b4 {[%clk 0:01:59]} 19. exf6 {[%clk 0:01:31]}  Bxf6 {[%clk 0:01:58]} 20. bxa3 {[%clk 0:01:20]}  Qxc3 {[%clk 0:01:56]} 21. Nf3 {[%clk 0:01:07]}  Bb5 {[%clk 0:01:54]} 22. Qd2 {[%clk 0:00:57]}  Bxf1 {[%clk 0:01:52]} 23. Rxf1 {[%clk 0:00:48]}  bxa3 {[%clk 0:01:51]} 24. Qxd6 {[%clk 0:00:34]}  a2 {[%clk 0:01:48]} 25. Bd2 {[%clk 0:00:34]}  Qxc2 {[%clk 0:01:40]} 26. Ne5 {[%clk 0:00:25]}  Rcd8 {[%clk 0:01:30]} 27. Qc6 {[%clk 0:00:17]}  Qxc6 {[%clk 0:01:23]} 28. Bxc6 {[%clk 0:00:15]}  Rxd2+ {[%clk 0:01:20]} 29. Kg1 {[%clk 0:00:16]}  Rc8 {[%clk 0:01:17]} 30. Bb7 {[%clk 0:00:15]}  Rcc2 {[%clk 0:01:15]} 31. Ra1 {[%clk 0:00:07]}  Rb2 {[%clk 0:01:05]} 32. Be4 {[%clk 0:00:06]}  Bxe5 {[%clk 0:01:02]} 33. fxe5 {[%clk 0:00:07]}  Re2 {[%clk 0:01:01]} 34. Rd1 {[%clk 0:00:04]}  g6 {[%clk 0:00:59]} 0-1


[Site "https://www.chess.com"]

[Event "Late Titled Tuesday Blitz February 8 2022"]
[White "Kopylov, Alexander A."]
[Black "Howell, David W L"]
[WhiteFideId "4164857"]
[BlackFideId "410608"]
[WhiteElo "2436"]
[BlackElo "2559"]
[Result "0-1"]
[Round "09"]
[TimeControl "180+1"]
[Date "2022.02.08"]
[WhiteClock "0:00:04"]
[BlackClock "0:00:17"]

1. e4 {[%clk 0:02:23]}  d6 {[%clk 0:02:53]} 2. Nf3 {[%clk 0:02:22]}  Nf6 {[%clk 0:02:53]} 3. Nc3 {[%clk 0:02:22]}  e5 {[%clk 0:02:48]} 4. d4 {[%clk 0:02:21]}  Nbd7 {[%clk 0:02:48]} 5. Bc4 {[%clk 0:02:21]}  Be7 {[%clk 0:02:46]} 6. g4 {[%clk 0:02:21]}  c6 {[%clk 0:02:34]} 7. g5 {[%clk 0:02:19]}  Nxe4 {[%clk 0:02:34]} 8. Nxe4 {[%clk 0:02:07]}  d5 {[%clk 0:02:33]} 9. Bd3 {[%clk 0:02:03]}  dxe4 {[%clk 0:02:27]} 10. Bxe4 {[%clk 0:02:04]}  O-O {[%clk 0:02:15]} 11. Qd3 {[%clk 0:01:46]}  g6 {[%clk 0:02:09]} 12. Be3 {[%clk 0:01:41]}  exd4 {[%clk 0:02:05]} 13. Bxd4 {[%clk 0:01:41]}  Nc5 {[%clk 0:02:05]} 14. Bxc5 {[%clk 0:01:40]}  Qxd3 {[%clk 0:02:02]} 15. Bxd3 {[%clk 0:01:39]}  Bxc5 {[%clk 0:02:03]} 16. O-O {[%clk 0:01:27]}  Bh3 {[%clk 0:01:59]} 17. Rfe1 {[%clk 0:01:27]}  f6 {[%clk 0:01:56]} 18. Nd2 {[%clk 0:00:41]}  fxg5 {[%clk 0:01:55]} 19. Ne4 {[%clk 0:00:41]}  Bb6 {[%clk 0:01:55]} 20. a4 {[%clk 0:00:31]}  a5 {[%clk 0:01:55]} 21. Ra3 {[%clk 0:00:31]}  Be6 {[%clk 0:01:38]} 22. Re2 {[%clk 0:00:18]}  g4 {[%clk 0:01:37]} 23. Ng5 {[%clk 0:00:14]}  Bd5 {[%clk 0:01:36]} 24. c4 {[%clk 0:00:14]}  Bf3 {[%clk 0:01:35]} 25. Rc2 {[%clk 0:00:10]}  Bc5 {[%clk 0:01:28]} 26. Rb3 {[%clk 0:00:09]}  b6 {[%clk 0:01:29]} 27. Be4 {[%clk 0:00:08]}  Rae8 {[%clk 0:01:10]} 28. Bxf3 {[%clk 0:00:08]}  gxf3 {[%clk 0:01:08]} 29. Nxf3 {[%clk 0:00:08]}  Re4 {[%clk 0:01:04]} 30. Rd3 {[%clk 0:00:07]}  Rg4+ {[%clk 0:00:57]} 31. Kf1 {[%clk 0:00:07]}  Rgf4 {[%clk 0:00:58]} 32. Kg2 {[%clk 0:00:07]}  Rg4+ {[%clk 0:00:52]} 33. Kf1 {[%clk 0:00:07]}  Re4 {[%clk 0:00:40]} 34. b3 {[%clk 0:00:07]}  h6 {[%clk 0:00:38]} 35. Re2 {[%clk 0:00:07]}  Rxe2 {[%clk 0:00:34]} 36. Kxe2 {[%clk 0:00:07]}  g5 {[%clk 0:00:35]} 37. Rd7 {[%clk 0:00:06]}  g4 {[%clk 0:00:29]} 38. Ne5 {[%clk 0:00:06]}  Rxf2+ {[%clk 0:00:27]} 39. Kd3 {[%clk 0:00:07]}  h5 {[%clk 0:00:22]} 40. Nxc6 {[%clk 0:00:05]}  Rxh2 {[%clk 0:00:20]} 41. Ne5 {[%clk 0:00:03]}  Rf2 {[%clk 0:00:19]} 42. Ke4 {[%clk 0:00:02]}  g3 {[%clk 0:00:17]} 43. Rd3 {[%clk 0:00:02]}  h4 {[%clk 0:00:15]} 44. Nf3 {[%clk 0:00:02]}  g2 {[%clk 0:00:15]} 45. Rd1 {[%clk 0:00:02]}  Rxf3 {[%clk 0:00:15]} 46. Kxf3 {[%clk 0:00:03]}  g1=Q {[%clk 0:00:15]} 47. Rxg1+ {[%clk 0:00:03]}  Bxg1 {[%clk 0:00:16]} 48. Kg4 {[%clk 0:00:04]}  Bf2 {[%clk 0:00:17]} 0-1


[Site "https://www.chess.com"]

[Event "Late Titled Tuesday Blitz February 8 2022"]
[White "Kouskoutis, Georgios-Alexandros"]
[Black "Mirzoev, Azer"]
[WhiteFideId "4234049"]
[BlackFideId "13400304"]
[WhiteElo "2130"]
[BlackElo "2525"]
[Result "1-0"]
[Round "09"]
[TimeControl "180+1"]
[Date "2022.02.09"]
[WhiteClock "0:00:02"]
[BlackClock "0:00:03"]

1. c4 {[%clk 0:02:57]}  c5 {[%clk 0:02:58]} 2. g3 {[%clk 0:02:57]}  g6 {[%clk 0:02:53]} 3. Bg2 {[%clk 0:02:50]}  Bg7 {[%clk 0:02:46]} 4. Nc3 {[%clk 0:02:50]}  Nc6 {[%clk 0:02:41]} 5. e4 {[%clk 0:02:50]}  a6 {[%clk 0:02:41]} 6. a4 {[%clk 0:02:47]}  d6 {[%clk 0:02:33]} 7. Nge2 {[%clk 0:02:47]}  Nh6 {[%clk 0:02:33]} 8. O-O {[%clk 0:02:45]}  O-O {[%clk 0:02:32]} 9. d3 {[%clk 0:02:42]}  Rb8 {[%clk 0:02:28]} 10. h3 {[%clk 0:02:29]}  f5 {[%clk 0:02:27]} 11. Rb1 {[%clk 0:02:16]}  Nf7 {[%clk 0:02:25]} 12. exf5 {[%clk 0:01:54]}  Bxf5 {[%clk 0:02:24]} 13. g4 {[%clk 0:01:54]}  Bd7 {[%clk 0:02:19]} 14. f4 {[%clk 0:01:54]}  Nb4 {[%clk 0:02:16]} 15. Be3 {[%clk 0:01:47]}  Bc6 {[%clk 0:02:14]} 16. d4 {[%clk 0:01:40]}  Bxg2 {[%clk 0:02:09]} 17. Kxg2 {[%clk 0:01:41]}  cxd4 {[%clk 0:02:03]} 18. Bxd4 {[%clk 0:01:31]}  e5 {[%clk 0:02:00]} 19. fxe5 {[%clk 0:01:26]}  Nxe5 {[%clk 0:01:59]} 20. Rxf8+ {[%clk 0:00:34]}  Qxf8 {[%clk 0:01:56]} 21. Bxe5 {[%clk 0:00:29]}  Bxe5 {[%clk 0:01:55]} 22. Nd5 {[%clk 0:00:26]}  Nxd5 {[%clk 0:01:44]} 23. Qxd5+ {[%clk 0:00:27]}  Qf7 {[%clk 0:01:45]} 24. Qxf7+ {[%clk 0:00:21]}  Kxf7 {[%clk 0:01:45]} 25. b3 {[%clk 0:00:22]}  b5 {[%clk 0:01:32]} 26. cxb5 {[%clk 0:00:15]}  axb5 {[%clk 0:01:33]} 27. a5 {[%clk 0:00:15]}  b4 {[%clk 0:01:27]} 28. Rd1 {[%clk 0:00:04]}  Rb5 {[%clk 0:01:16]} 29. Nd4 {[%clk 0:00:04]}  Rxa5 {[%clk 0:01:15]} 30. Nc6 {[%clk 0:00:04]}  Ra2+ {[%clk 0:01:12]} 31. Kf3 {[%clk 0:00:05]}  Rb2 {[%clk 0:00:57]} 32. Rd3 {[%clk 0:00:04]}  Bc3 {[%clk 0:00:54]} 33. Ke4 {[%clk 0:00:04]}  Rxb3 {[%clk 0:00:48]} 34. Kd5 {[%clk 0:00:04]}  Rb1 {[%clk 0:00:42]} 35. Kxd6 {[%clk 0:00:03]}  Re1 {[%clk 0:00:36]} 36. Kc5 {[%clk 0:00:02]}  Re4 {[%clk 0:00:24]} 37. Na5 {[%clk 0:00:02]}  Kf6 {[%clk 0:00:20]} 38. Nc4 {[%clk 0:00:01]}  Kg5 {[%clk 0:00:14]} 39. Ne3 {[%clk 0:00:01]}  Re5+ {[%clk 0:00:10]} 40. Kc4 {[%clk 0:00:01]}  Kf4 {[%clk 0:00:10]} 41. Nd5+ {[%clk 0:00:01]}  Kg5 {[%clk 0:00:07]} 42. Nxc3 {[%clk 0:00:01]}  bxc3 {[%clk 0:00:06]} 43. Kxc3 {[%clk 0:00:02]}  Kh4 {[%clk 0:00:03]} 44. Kd4 {[%clk 0:00:02]}  Re8 {[%clk 0:00:03]} 45. Rf3 {[%clk 0:00:02]} 1-0


[Site "https://www.chess.com"]

[Event "Late Titled Tuesday Blitz February 8 2022"]
[White "Ladan, Nicholas"]
[Black "Fishbein, Alexander"]
[WhiteFideId "30918855"]
[BlackFideId "2000377"]
[WhiteElo "2318"]
[BlackElo "2442"]
[Result "0-1"]
[Round "09"]
[TimeControl "180+1"]
[Date "2022.02.09"]
[WhiteClock "0:00:03"]
[BlackClock "0:00:10"]

1. d4 {[%clk 0:03:00]}  Nf6 {[%clk 0:02:57]} 2. c4 {[%clk 0:03:00]}  g6 {[%clk 0:02:57]} 3. Nf3 {[%clk 0:03:00]}  Bg7 {[%clk 0:02:49]} 4. g3 {[%clk 0:03:01]}  O-O {[%clk 0:02:48]} 5. Bg2 {[%clk 0:03:01]}  d6 {[%clk 0:02:49]} 6. O-O {[%clk 0:03:01]}  Nc6 {[%clk 0:02:49]} 7. h3 {[%clk 0:03:00]}  e5 {[%clk 0:02:48]} 8. d5 {[%clk 0:02:56]}  Nb8 {[%clk 0:02:43]} 9. Nc3 {[%clk 0:02:56]}  a5 {[%clk 0:02:42]} 10. e4 {[%clk 0:02:55]}  Na6 {[%clk 0:02:42]} 11. Ne1 {[%clk 0:02:55]}  Nc5 {[%clk 0:02:40]} 12. Nd3 {[%clk 0:02:55]}  Nfd7 {[%clk 0:02:38]} 13. f4 {[%clk 0:02:47]}  Nxd3 {[%clk 0:02:36]} 14. Qxd3 {[%clk 0:02:46]}  exf4 {[%clk 0:02:33]} 15. Bxf4 {[%clk 0:02:38]}  Ne5 {[%clk 0:02:27]} 16. Qc2 {[%clk 0:02:22]}  Bd7 {[%clk 0:02:11]} 17. Ne2 {[%clk 0:02:07]}  c6 {[%clk 0:02:04]} 18. dxc6 {[%clk 0:01:56]}  bxc6 {[%clk 0:01:59]} 19. Rad1 {[%clk 0:01:54]}  Qb6+ {[%clk 0:01:48]} 20. Kh2 {[%clk 0:01:51]}  Qc5 {[%clk 0:01:42]} 21. b3 {[%clk 0:01:41]}  a4 {[%clk 0:01:42]} 22. Nc3 {[%clk 0:01:28]}  axb3 {[%clk 0:01:41]} 23. axb3 {[%clk 0:01:29]}  Be6 {[%clk 0:01:32]} 24. Rd2 {[%clk 0:01:27]}  Qb4 {[%clk 0:01:30]} 25. Rfd1 {[%clk 0:01:24]}  Rfd8 {[%clk 0:01:18]} 26. Na4 {[%clk 0:01:12]}  Nxc4 {[%clk 0:01:12]} 27. bxc4 {[%clk 0:01:09]}  Qxa4 {[%clk 0:01:12]} 28. Bxd6 {[%clk 0:00:52]}  Qxc2 {[%clk 0:01:06]} 29. Rxc2 {[%clk 0:00:52]}  Be5 {[%clk 0:01:00]} 30. Rcd2 {[%clk 0:00:45]}  Bxd6 {[%clk 0:01:00]} 31. Rxd6 {[%clk 0:00:45]}  Rxd6 {[%clk 0:00:57]} 32. Rxd6 {[%clk 0:00:46]}  c5 {[%clk 0:00:46]} 33. e5 {[%clk 0:00:40]}  Ra2 {[%clk 0:00:43]} 34. Kg1 {[%clk 0:00:33]}  Bxc4 {[%clk 0:00:42]} 35. Rc6 {[%clk 0:00:31]}  Ra5 {[%clk 0:00:40]} 36. Kf2 {[%clk 0:00:26]}  Be6 {[%clk 0:00:39]} 37. Ke3 {[%clk 0:00:19]}  c4 {[%clk 0:00:38]} 38. Kf4 {[%clk 0:00:18]}  Kg7 {[%clk 0:00:31]} 39. Be4 {[%clk 0:00:16]}  h6 {[%clk 0:00:30]} 40. h4 {[%clk 0:00:16]}  Ra3 {[%clk 0:00:30]} 41. Rc5 {[%clk 0:00:14]}  Rc3 {[%clk 0:00:28]} 42. Bd5 {[%clk 0:00:14]}  Bxd5 {[%clk 0:00:17]} 43. Rxd5 {[%clk 0:00:15]}  Rd3 {[%clk 0:00:16]} 44. Rc5 {[%clk 0:00:15]}  c3 {[%clk 0:00:16]} 45. Rc7 {[%clk 0:00:15]}  Kf8 {[%clk 0:00:15]} 46. Kg4 {[%clk 0:00:12]}  Ke8 {[%clk 0:00:15]} 47. Kf4 {[%clk 0:00:08]}  Kd8 {[%clk 0:00:14]} 48. Rc4 {[%clk 0:00:07]}  Kd7 {[%clk 0:00:14]} 49. g4 {[%clk 0:00:05]}  Ke6 {[%clk 0:00:13]} 50. Rc6+ {[%clk 0:00:05]}  Kd5 {[%clk 0:00:13]} 51. Rc8 {[%clk 0:00:04]}  Kd4 {[%clk 0:00:10]} 52. h5 {[%clk 0:00:03]}  g5+ {[%clk 0:00:10]} 53. Kf5 {[%clk 0:00:03]}  Rf3# {[%clk 0:00:10]} 0-1


[Site "https://www.chess.com"]

[Event "Late Titled Tuesday Blitz February 8 2022"]
[White "Laith, Kasib"]
[Black "Jarocka, Liwia"]
[WhiteFideId "4801059"]
[BlackFideId "21807558"]
[WhiteElo "1982"]
[BlackElo "1896"]
[Result "0-1"]
[Round "09"]
[TimeControl "180+1"]
[Date "2022.02.09"]
[WhiteClock "0:00:03"]
[BlackClock "0:01:37"]

1. Nf3 {[%clk 0:02:51]}  c5 {[%clk 0:02:57]} 2. g3 {[%clk 0:02:51]}  Nc6 {[%clk 0:02:56]} 3. Bg2 {[%clk 0:02:51]}  g6 {[%clk 0:02:56]} 4. O-O {[%clk 0:02:50]}  Bg7 {[%clk 0:02:57]} 5. d3 {[%clk 0:02:50]}  Nf6 {[%clk 0:02:57]} 6. e4 {[%clk 0:02:50]}  d6 {[%clk 0:02:58]} 7. c3 {[%clk 0:02:48]}  O-O {[%clk 0:02:57]} 8. Re1 {[%clk 0:02:47]}  Bg4 {[%clk 0:02:57]} 9. h3 {[%clk 0:02:44]}  Bxf3 {[%clk 0:02:57]} 10. Qxf3 {[%clk 0:02:44]}  Nd7 {[%clk 0:02:58]} 11. a4 {[%clk 0:02:43]}  e5 {[%clk 0:02:55]} 12. Be3 {[%clk 0:02:42]}  Kh8 {[%clk 0:02:53]} 13. Qd1 {[%clk 0:02:41]}  Rc8 {[%clk 0:02:50]} 14. Nd2 {[%clk 0:02:41]}  f5 {[%clk 0:02:50]} 15. exf5 {[%clk 0:02:38]}  gxf5 {[%clk 0:02:51]} 16. f4 {[%clk 0:02:30]}  Qe7 {[%clk 0:02:48]} 17. a5 {[%clk 0:02:12]}  Bf6 {[%clk 0:02:44]} 18. a6 {[%clk 0:02:10]}  b6 {[%clk 0:02:44]} 19. Nf3 {[%clk 0:01:54]}  Qg7 {[%clk 0:02:35]} 20. Ng5 {[%clk 0:01:44]}  Bxg5 {[%clk 0:02:22]} 21. fxg5 {[%clk 0:01:44]}  f4 {[%clk 0:02:19]} 22. Bf2 {[%clk 0:01:24]}  fxg3 {[%clk 0:02:16]} 23. Bxg3 {[%clk 0:01:19]}  Qxg5 {[%clk 0:02:15]} 24. Qg4 {[%clk 0:01:12]}  Qxg4 {[%clk 0:02:12]} 25. hxg4 {[%clk 0:01:13]}  Rg8 {[%clk 0:02:13]} 26. Kh2 {[%clk 0:01:04]}  Nf6 {[%clk 0:02:07]} 27. g5 {[%clk 0:00:47]}  Rxg5 {[%clk 0:01:55]} 28. Bh3 {[%clk 0:00:29]}  Ng4+ {[%clk 0:01:51]} 29. Bxg4 {[%clk 0:00:19]}  Rxg4 {[%clk 0:01:52]} 30. Re3 {[%clk 0:00:15]}  Rcg8 {[%clk 0:01:50]} 31. Rf1 {[%clk 0:00:14]}  Ne7 {[%clk 0:01:42]} 32. Rf7 {[%clk 0:00:14]}  R4g7 {[%clk 0:01:38]} 33. Ref3 {[%clk 0:00:13]}  Ng6 {[%clk 0:01:35]} 34. Rxg7 {[%clk 0:00:12]}  Kxg7 {[%clk 0:01:35]} 35. b4 {[%clk 0:00:11]}  Rf8 {[%clk 0:01:35]} 36. Rxf8 {[%clk 0:00:08]}  Kxf8 {[%clk 0:01:35]} 37. bxc5 {[%clk 0:00:08]}  bxc5 {[%clk 0:01:36]} 38. d4 {[%clk 0:00:07]}  cxd4 {[%clk 0:01:34]} 39. cxd4 {[%clk 0:00:07]}  Ke7 {[%clk 0:01:35]} 40. dxe5 {[%clk 0:00:07]}  Nxe5 {[%clk 0:01:34]} 41. Bf2 {[%clk 0:00:07]}  Nc6 {[%clk 0:01:34]} 42. Kg2 {[%clk 0:00:07]}  Ke6 {[%clk 0:01:33]} 43. Kf3 {[%clk 0:00:07]}  Nb4 {[%clk 0:01:33]} 44. Bxa7 {[%clk 0:00:06]}  Nxa6 {[%clk 0:01:34]} 45. Bb8 {[%clk 0:00:06]}  d5 {[%clk 0:01:32]} 46. Ke3 {[%clk 0:00:05]}  Nc5 {[%clk 0:01:31]} 47. Bh2 {[%clk 0:00:04]}  Ne4 {[%clk 0:01:30]} 48. Kd4 {[%clk 0:00:05]}  Nf6 {[%clk 0:01:30]} 49. Bg1 {[%clk 0:00:04]}  h5 {[%clk 0:01:30]} 50. Bh2 {[%clk 0:00:05]}  h4 {[%clk 0:01:30]} 51. Bg1 {[%clk 0:00:04]}  h3 {[%clk 0:01:30]} 52. Bh2 {[%clk 0:00:05]}  Ng4 {[%clk 0:01:31]} 53. Bg3 {[%clk 0:00:05]}  h2 {[%clk 0:01:31]} 54. Bxh2 {[%clk 0:00:05]}  Nxh2 {[%clk 0:01:32]} 55. Kd3 {[%clk 0:00:05]}  Ke5 {[%clk 0:01:33]} 56. Kd2 {[%clk 0:00:05]}  Ng4 {[%clk 0:01:34]} 57. Ke2 {[%clk 0:00:05]}  d4 {[%clk 0:01:35]} 58. Kd3 {[%clk 0:00:05]}  Kd5 {[%clk 0:01:35]} 59. Kd2 {[%clk 0:00:06]}  Ke4 {[%clk 0:01:36]} 60. Kd1 {[%clk 0:00:06]}  d3 {[%clk 0:01:37]} 61. Ke1 {[%clk 0:00:06]}  Ke3 {[%clk 0:01:37]} 62. Kd1 {[%clk 0:00:07]}  Nf2+ {[%clk 0:01:37]} 63. Ke1 {[%clk 0:00:07]}  d2+ {[%clk 0:01:38]} 64. Kf1 {[%clk 0:00:07]}  d1=Q+ {[%clk 0:01:38]} 65. Kg2 {[%clk 0:00:07]}  Qg4+ {[%clk 0:01:38]} 66. Kh2 {[%clk 0:00:04]}  Ne4 {[%clk 0:01:37]} 67. Kh1 {[%clk 0:00:03]}  Kf2 {[%clk 0:01:37]} 68. Kh2 {[%clk 0:00:03]}  Qh4# {[%clk 0:01:37]} 0-1


[Site "https://www.chess.com"]

[Event "Late Titled Tuesday Blitz February 8 2022"]
[White "Migot, Tangi"]
[Black "Xie, Bryan"]
[WhiteFideId "662445"]
[BlackFideId "30941296"]
[WhiteElo "2539"]
[BlackElo "1899"]
[Result "1-0"]
[Round "09"]
[TimeControl "180+1"]
[Date "2022.02.09"]
[WhiteClock "0:01:56"]
[BlackClock "0:00:33"]

1. Nf3 {[%clk 0:03:00]}  c5 {[%clk 0:02:55]} 2. c3 {[%clk 0:03:01]}  Nc6 {[%clk 0:02:55]} 3. d4 {[%clk 0:03:01]}  cxd4 {[%clk 0:02:56]} 4. cxd4 {[%clk 0:03:01]}  d5 {[%clk 0:02:57]} 5. Nc3 {[%clk 0:03:00]}  Nf6 {[%clk 0:02:53]} 6. Bf4 {[%clk 0:03:00]}  Bf5 {[%clk 0:02:53]} 7. e3 {[%clk 0:03:00]}  e6 {[%clk 0:02:54]} 8. Qb3 {[%clk 0:02:59]}  Qd7 {[%clk 0:02:46]} 9. Bb5 {[%clk 0:02:57]}  Bd6 {[%clk 0:02:39]} 10. Ne5 {[%clk 0:02:49]}  Bxe5 {[%clk 0:02:31]} 11. Bxe5 {[%clk 0:02:50]}  a6 {[%clk 0:02:28]} 12. Bxc6 {[%clk 0:02:38]}  Qxc6 {[%clk 0:02:28]} 13. O-O {[%clk 0:02:33]}  Nd7 {[%clk 0:02:19]} 14. Rfc1 {[%clk 0:02:31]}  Nxe5 {[%clk 0:02:04]} 15. dxe5 {[%clk 0:02:31]}  Qd7 {[%clk 0:02:03]} 16. Na4 {[%clk 0:02:28]}  Qe7 {[%clk 0:01:47]} 17. Nb6 {[%clk 0:02:21]}  Rd8 {[%clk 0:01:46]} 18. Qa4+ {[%clk 0:02:21]}  Kf8 {[%clk 0:01:22]} 19. Rc3 {[%clk 0:02:20]}  f6 {[%clk 0:01:17]} 20. Qd4 {[%clk 0:02:05]}  h5 {[%clk 0:00:47]} 21. Rac1 {[%clk 0:02:02]}  Qf7 {[%clk 0:00:33]} 22. Rc8 {[%clk 0:01:56]} 1-0


[Site "https://www.chess.com"]